Cogmind - Beta 10.2 @@@ ROGUE MODE // 2021.09.24 @ 20:04:44 Player: GipsyDog Result: Destroyed by Y-45 Defender with Heavy Assault Rifle Performance ------------- Evolutions (1) 500 Regions Visited (2) 400 Robots Destroyed (34) 170 Value Destroyed (705) 705 Prototype IDs (4) 80 Alien Tech Used (0) 0 Bonus (0) 0 TOTAL SCORE: 1855 Bonus ------- None Cogmind --------- Core Integrity 0/400 Matter 227/300 Energy 99/100 System Corruption 0% Temperature Cool (9) Movement Core (50) Location -9/Materials Parts ------- > --- POWER (1) -------- (None) > --- PROPULSION (2) --- (None) > --- UTILITY (4) ------ (None) > --- WEAPON (2) ------- (None) > --- INVENTORY (4) ---- Medium Armor Plating Assault Rifle Grenade Launcher Datajack Peak State ------------ > --- POWER ------------ Heavy Ion Engine > --- PROPULSION ------- Aluminum Leg Aluminum Leg > --- UTILITY ---------- Medium Storage Unit Signal Interpreter Improved Targeting Computer Hacking Suite > --- WEAPON ----------- Improved Medium Laser Autogun > --- INVENTORY -------- Ion Engine Light Ion Engine Armored Wheel Heavy EM Pulse Gun Heavy EM Pulse Gun Assault Rifle Heavy Assault Rifle Grenade Launcher [Rating: 18] Favorites ----------- Power Ion Engine Engine Ion Engine Propulsion Aluminum Leg Leg Aluminum Leg Wheel Armored Wheel Utility Signal Interpreter Device Tractor Beam Storage Medium Storage Unit Processor Signal Interpreter Hackware Hacking Suite Protection Light Armor Plating Weapon Autogun Energy Gun Improved EM Shotgun Ballistic Gun Autogun Launcher Grenade Launcher Special Weapon Mining Laser Special Melee Weapon Datajack Build | -11 -10 -9 ------- Run | Scr Mat Mat Slots Evolved 2 | . . 2 Power . | . . . Propulsion . | . . . Utility 2 | . . 2 Weapon . | . . . Parts Attached 42 | 6 14 22 Power 7 | 1 1 5 Engine 7 | 1 1 5 Core . | . . . Reactor . | . . . Propulsion 9 | 2 2 5 Treads . | . . . Leg 5 | . . 5 Wheel 4 | 2 2 . Hover . | . . . Flight . | . . . Utility 7 | . 5 2 Device 1 | . 1 . Storage 2 | . 1 1 Processor 2 | . 1 1 Hackware 1 | . 1 . Protection 1 | . 1 . Artifact . | . . . Weapon 19 | 3 6 10 Energy Gun 9 | 2 . 7 Energy Cannon . | . . . Ballistic Gun 7 | 1 4 2 Ballistic Cannon . | . . . Launcher 1 | . . 1 Special Weapon 1 | . 1 . Impact Weapon . | . . . Slashing Weapon . | . . . Piercing Weapon . | . . . Special Melee Weapon 1 | . 1 . Unidentified Prototypes 3 | . . 3 Parts Lost 10 | . 1 9 Power 3 | . . 3 Propulsion 2 | . . 2 Utility . | . . . Weapon 5 | . 1 4 Highest Loss Streak 8 | . 1 8 Average Slot Usage (%) 95 | . 96 94 Engine 11 | . 14 10 Leg 13 | . . 17 Wheel 9 | . 28 4 Storage 9 | . 4 10 Processor 16 | . 5 19 Hackware 9 | . 4 11 Protection 1 | . 7 . Energy Gun 8 | . 9 8 Ballistic Gun 12 | . 12 12 Naked Turns 1 | . . 1 Heaviest Build 22 | 7 14 22 Greatest Support 24 | 20 24 24 Greatest Overweight (x) 2 | . . 2 Average Overweight (x) . | . . . Largest Inventory Capacity 8 | 4 6 8 Average Capacity 7 | 4 4 7 Most Carried 8 | 4 5 8 Average Carried 5 | 2 3 6 Final Capacity 4 | 4 4 4 Final Carried 4 | 4 3 4 Class Distribution -------------------- 62% | Scavenger-Mutant 37% | Mutant Dominant Class ---------------- Mutant | -10/Materials Scavenger-Mutant | -9/Materials Resources | -11 -10 -9 ----------- Run | Scr Mat Mat Matter Collected 853 | 235 175 443 Remotely 45 | . 45 . Salvage Created 1042 | . 176 866 Parts 71 | . 15 56 Haulers Intercepted 2 | . . 2 Recyclers Shooed 1 | . . 1 Parts Field Recycled . | . . . Retrieved Matter . | . . . Parts Self-Destructed . | . . . Prevented . | . . . Kills | -11 -10 -9 ------- Run | Scr Mat Mat Combat Hostiles Destroyed 23 | . 7 16 Guns 17 | . 6 11 Cannons 1 | . 1 . AOE 5 | . . 5 Classes Destroyed 9 | . 4 5 Builder 1 | . . 1 Hauler 2 | . . 2 Recycler 2 | . . 2 Operator 2 | . 1 1 Watcher 4 | . 2 2 Swarmer 10 | . 3 7 Grunt 9 | . 4 5 Duelist 1 | . . 1 Sentry 3 | . . 3 Best Kill Streak 5 | . 3 5 Combat Bots Only 5 | . 2 5 Max Kills in Single Turn 4 | . 1 4 Gunslinging . | . . . Exploded 3 | . . 3 Melee . | . . . Uniques/NPCs Destroyed . | . . . Combat | -11 -10 -9 -------- Run | Scr Mat Mat Damage Taken 1727 | . 349 1378 Core 478 | . 72 406 Absorbed by Shields . | . . . Core Remaining (%) 85 | 100 71 . Volleys Fired 90 | . 44 46 Largest 2 | . 2 2 Hottest 123 | . 123 79 Shots Fired 147 | . 67 80 Gun 136 | . 58 78 Cannon . | . . . Launcher 2 | . . 2 Special 9 | . 9 . Kinetic 88 | . 40 48 Thermal 31 | . 27 4 Explosive 2 | . . 2 Electromagnetic 26 | . . 26 Robot Hit Streak 18 | . 18 14 Robot Miss Streak 5 | . 5 2 Penetration Max . | . . . Secondary Targets 1 | . 1 . Max Gunslinging Chain 1 | . 1 . Shots Hit Robots 103 | . 46 57 Core Hits 48 | . 12 36 Critical Hits 1 | . . 1 Critical Kills . | . . . Critical Parts Destroyed 1 | . . 1 Melee Attacks 2 | . 2 . Impact . | . . . Slashing . | . . . Piercing . | . . . Sneak Attacks 1 | . 1 . Combat Hostiles . | . . . Follow-up Attacks . | . . . Damage Inflicted 1942 | . 667 1275 Guns 1491 | . 571 920 Cannons . | . . . Explosions 350 | . . 350 Melee . | . . . Ramming 5 | . . 5 Kinetic 889 | . 486 403 Thermal 360 | . 181 179 Explosive 223 | . . 223 Electromagnetic 465 | . . 465 Impact . | . . . Slashing . | . . . Piercing . | . . . Highest Corruption 1 | . 1 . Average Corruption 1 | . 1 . Corruption Purged . | . . . Effects 2 | . 2 . Message Errors 1 | . 1 . Energy Discharges 1 | . 1 . Overload Shots . | . . . Overflow Damage 7 | . . 7 Projectiles . | . . . Explosions 7 | . . 7 Melee . | . . . Knockbacks . | . . . Impact . | . . . Kinetic . | . . . Secondary . | . . . Self-Inflicted Damage 174 | . . 174 Shots 5 | . . 5 Rammed 2 | . . 2 Targets Rammed 2 | . . 2 Kicked . | . . . Crushed . | . . . Highest Temperature 195 | . 195 58 Average Temperature 42 | . 56 19 Received Heat Transfer 444 | . 138 306 Siege Activations . | . . . Robots Corrupted . | . . . Combat Hostiles . | . . . Parts Fried 1 | . . 1 Impact Corruptions . | . . . Robots Melted . | . . . Combat Hostiles . | . . . Parts Melted . | . . . Heat Transferred 696 | . 435 261 Parts Sabotaged . | . . . Parts Stolen . | . . . Parts Stripped . | . . . Power Chain Reactions 3 | . . 3 Missiles Intercepted . | . . . Alert | -11 -10 -9 ------- Run | Scr Mat Mat Peak Influence 348 | . 304 348 Initial 128 | . . 128 Average 135 | . 164 133 Maximum Alert Level 1 | . 1 1 Low Security (%) 79 | 100 61 83 Level 1 20 | . 38 16 Level 2 . | . . . Level 3 . | . . . Level 4 . | . . . Level 5 . | . . . High Security . | . . . Max Security . | . . . Squads Dispatched 6 | . 4 2 Investigation 2 | . 2 . Extermination . | . . . Reinforcement 4 | . 2 2 Assault . | . . . Garrison . | . . . Intercept . | . . . Construction Impeded . | . . . Haulers Reinforced . | . . . Stealth | -11 -10 -9 --------- Run | Scr Mat Mat Distress Signals 3 | . . 3 Communications Jammed . | . . . Distress Signals . | . . . Times Spotted 60 | . 20 40 Peak Tracking Total 11 | . 4 11 Tactical Retreats 7 | . 1 6 Traps | -11 -10 -9 ------- Run | Scr Mat Mat Traps Triggered . | . . . Indirectly . | . . . Trap Hack Attempts . | . . . Triggered . | . . . Disarmed . | . . . Reprogrammed . | . . . Reused . | . . . Traps Extracted . | . . . Installed . | . . . Triggered . | . . . Machines | -11 -10 -9 ---------- Run | Scr Mat Mat Machines Disabled . | . . . Max in Single Turn . | . . . Machines Sabotaged . | . . . Garrisons Compromised . | . . . Overloaded Fab Kills . | . . . Fab Network Shutdowns . | . . . Hacking | -11 -10 -9 --------- Run | Scr Mat Mat Machines Accessed 10 | . 3 7 Terminals 6 | . 3 3 Fabricators . | . . . Repair Stations 1 | . . 1 Recycling Units 2 | . . 2 Scanalyzers 1 | . . 1 Garrison Access . | . . . Total Hacks 33 | . 6 27 Successful 23 | . 3 20 Failed 10 | . 3 7 Catastrophic 3 | . 1 2 Database Lockouts . | . . . Manual 9 | . 3 6 Terminals 17 | . 6 11 Fabricators . | . . . Repair Stations 2 | . . 2 Recycling Units 4 | . . 4 Scanalyzers 10 | . . 10 Garrison Access . | . . . Terminal Hacks 8 | . 3 5 Robot Analysis 2 | . 1 1 Prototype ID Bank 1 | . . 1 Alert Level 2 | . . 2 Unreport Threat 1 | . . 1 Zone Layout 2 | . 2 . Fabricator Hacks . | . . . Repair Station Hacks 2 | . . 2 Scan Component 1 | . . 1 Repair 1 | . . 1 Recycling Unit Hacks 3 | . . 3 Report Inventory 2 | . . 2 Retrieve Components 1 | . . 1 Scanalyzer 10 | . . 10 Insert Component 7 | . . 7 Analyze 3 | . . 3 Garrison Access Hacks . | . . . Unauthorized Hacks . | . . . Terminals . | . . . Fabricators . | . . . Repair Stations . | . . . Recycling Units . | . . . Scanalyzers . | . . . Garrison Access . | . . . Data Cores Recovered . | . . . Used . | . . . Hacking Detections 8 | . 3 5 Full Trace Events 3 | . 2 1 Feedback Events 1 | . 1 . Corruption 1 | . 1 . Feedback Blocked . | . . . Robot Schematics Acquired . | . . . Robots Built . | . . . Matter . | . . . Time . | . . . Total Robot Build Rating . | . . . Part Schematics Acquired 3 | . . 3 Parts Built . | . . . Matter . | . . . Time . | . . . Total Part Build Rating . | . . . Parts Repaired 1 | . . 1 Time 32 | . . 32 Parts Recycled . | . . . Recycled Matter . | . . . Retrieved Matter . | . . . Retrieved Components 8 | . . 8 Parts Scanalyzed 3 | . . 3 Part Schematics Acquired 3 | . . 3 Parts Damaged . | . . . Bothacking | -11 -10 -9 ------------ Run | Scr Mat Mat Used RIF Installer . | . . . Robots Hacked . | . . . Non-combat . | . . . Combat . | . . . Robot Hacks Applied . | . . . Relay Couplers Released . | . . . Robots Rewired . | . . . Allies Hacked . | . . . Hacks Repelled . | . . . Allies | -11 -10 -9 -------- Run | Scr Mat Mat Total Allies . | . . . Largest Group . | . . . Highest-Rated Group . | . . . Highest-Rated Ally . | . . . Total Orders . | . . . Ally Attacks . | . . . Total Damage . | . . . Kills . | . . . Allies Corrupted . | . . . Allies Melted . | . . . Intel | -11 -10 -9 ------- Run | Scr Mat Mat Robot Analysis Total 2 | . 1 1 Derelict Logs Recovered . | . . . Drone Launches . | . . . Drone Recoveries . | . . . Exploration | -11 -10 -9 ------------- Run | Scr Mat Mat Turns Passed 1825 | 58 370 1397 Spaces Moved 1177 | 61 200 916 Core 38 | 13 . 25 Treads . | . . . Legs 749 | . . 749 Wheels 390 | 48 200 142 Hover . | . . . Flight . | . . . Fastest Speed 50 | 50 80 50 Average Speed 112 | 73 86 120 Slowest Speed 150 | 80 90 150 Overloaded Moves . | . . . Propulsion Burnouts . | . . . Robots Hopped . | . . . Cave-ins Triggered . | . . . Exploration Rate (%) 36 | 3 40 66 Regions Visited 2 Branch Regions . Pre-discovered Areas . | . . . Known Exits Taken 1 | . 1 . Unknown Exits Taken 1 | 1 . . Scrap Searched . | . . . Spaces Dug . | . . . Terrain Destroyed 21 | . 2 19 Melee . | . . . Projectile 2 | . 2 . AOE 19 | . . 19 Terrain Rammed . | . . . Walls Destroyed . | . . . Machines Disabled . | . . . Actions | -11 -10 -9 --------- Run | Scr Mat Mat Total 1519 | 71 319 1129 Wait 161 | . 39 122 Move 1175 | 60 199 916 Hop . | . . . Pick Up 21 | 4 7 10 Fast Attach 16 | 5 6 5 Attach 6 | 1 2 3 Detach 2 | 1 . 1 Swap 20 | . 6 14 Drop 24 | . 14 10 Fire 90 | . 44 46 Melee 2 | . 2 . Ram . | . . . Kick 2 | . . 2 Crush . | . . . Escape Stasis . | . . . Rewire . | . . . Trap . | . . . Miscellaneous . | . . . Route ------- -11/Scrapyard -10/Materials -9/Materials (discovered 3 exits: *Mat x2 / *Min) History --------- Turn | Location | Event 6 | -11/Scrapyard | Discovered new exit (range 15) 59 | -11/Scrapyard | Entered Materials 339 | -10/Materials | Build established: Mutant 418 | -10/Materials | Discovered new exit (range 7) 428 | -10/Materials | Identified exit to Materials 429 | -10/Materials | Entered another Materials area 429 | -9/Materials | Evolved 2 slots: Utility x2 862 | -9/Materials | Repaired Autogun 971 | -9/Materials | Build established: Scavenger-Mutant 1130 | -9/Materials | Discovered new exit (range 16) 1178 | -9/Materials | Identified exit to Materials 1302 | -9/Materials | Discovered exit to Materials (range 9) 1487 | -9/Materials | Discovered new exit (range 16) 1504 | -9/Materials | Identified exit to Mines 1803 | -9/Materials | Core integrity fell below 50% 1820 | -9/Materials | Core integrity fell below 20% 1825 | -9/Materials | Released all parts (4) 1826 | -9/Materials | Destroyed by Y-45 Defender with Heavy Assault Rifle Last Messages --------------- 01780_ Destroyed Autogun. 01780_ Aluminum Leg destroyed. 01780_ Destroyed Aluminum Leg. 01780_ S-10 Pest destroyed. 01800_ Aluminum Leg destroyed. 01800_ Ion Engine destroyed. 01804_ R-06 Scavenger collects Com. Wheel. 01805_ Imp. Medium Laser destroyed. 01807_ L-31 Rogue destroyed. 01809_ R-06 Scavenger collects Sml. Storage Unit. 01811_ U-05 Engineer lays Concrete. 01822_ Hvy. Assault Rifle destroyed. 01823_ U-05 Engineer lays Concrete. 01823_ R-06 Scavenger collects Imp. Aluminum Leg. 01824_ U-05 Engineer lays Concrete. 01825_ Released Signal Interpreter. 01825_ Released Hacking Suite. 01825_ Released Med. Storage Unit. 01825_ Released Imp. Targeting Computer. 01825_ U-05 Engineer lays Concrete. Map ----- +----------------------------------------------------+ | ????# #? #??# #####+######## #???????????? | | ????# #?T #??# ## ### ###?????????? | | ????# #?? *= #??# ## # #?????????? | | ????+ /?? =! #??# ## # #?????????? | | ????# #???=! ???# ## + > #?????????? | | ????# #??? ???# ## # #?????????? | | ????# #???#+#???# ## # #?????????? | | ????# #???# #???# ## ## ##?????????? | | ????# #???# #???# ## ## #????###???? | | ????# #???# #???# ############# #???## ##### | | ##### ##### ##### #???????????# #???# | | #???????????# #???# """ | | ############# #???# """ | | #???# """ | | ##### ######################## #???# | | ????# #??# #?????# #???# ! | | ????# #??# ??????# #???#!! | | ????# #??# " """ """ ?????# #???#!! | | ????# #??# T r """ """ #?????# #???#!! | | ##### #### " Y""" """ #?????# ############ | | / ## =%/ #?????# ## #? | | ###### ## ###Y#######????## ##" """ #? | | #????# ### # ! #######+## #T """ #? | | #????# u %g [ #" """ #? | | #????# = [u + #? | | #????# """ @ % # """ #? | | "" #????####### "T" #######+## # """ #? | | "" #??????????# #????????#####%# """ #? | | "" #??????????# #????????????#*# #? | | "" #??????????# ^ ]]#????????????#!##########? | | ?" #??????????# ]]#????????????# #?????????? | | ?? #??????????# ^ #????????????# #?????????? | | ??##??????????# #????????????# #?????????? | | ????????????? T????????????# #?????????? | | ????????????? ! #????????????# #?????????? | | ????????????? #????????????# #?????##### | | ???????????????#### ?????????????# #?????# | | ??????????????????######?????????????# #?????# ### | | ??????????????????????????????######## ###???# #?? | | ??????????????????????????????# # #???# #?? | | ??????????????????????????????# [# #???# #?? | | ??????????????????????????????#"" = # #???# #?? | | ????????????????###########???#"Y + #???# #?? | | ????????????????# """ #???#"" # #???# #?? | | ????????????????# """"" #???# # #???# #?? | | ????????????????# """"" #???######## #???# #?? | | ????????????????# """"" #???# # #???# #?? | | ????????????????# """ #???# """ #!* #???# #?? | | ????????????????# #???# """ #=%=#####+### | | ????????????????# #???# """ + !# ! | +----------------------------------------------------+ Best States ------------- Heat Dissipation 28 Energy Generation 14 Energy Capacity 280 Matter Stores 300 Matter Capacity 300 Sight Range 16 Terrain Scan Density 10 Armor Coverage 150 Evasion (%) 50 Targeting Accuracy 6 Offensive Hacking 10 Item Schematics ----------------- Datajack | -9/Materials | Scanalyzed Hvy. EM Pulse Gun | -9/Materials | Scanalyzed Grenade Launcher | -9/Materials | Scanalyzed Robot Schematics ------------------ None Fabricated ------------ Nothing Alien Tech Used ----------------- None Achievements -------------- None Challenges ------------ None Game ------ Seed InsulationMyomerNanosword Manual? 0 Play Time 01:00:10 Cumulative 58.5 hours Start 2021.09.24 @ 14:14:08 End 2021.09.24 @ 20:04:44 Sessions 3 Manual Loads 0 Difficulty Rogue Special Mode None Game No. 27 Rogue 17 Adventurer 10 Explorer 0 Win Type - Total 2 Types 2/0/0/0/0/0/0/0/0 Lore% 21 Gallery% 40 Achievement% 32 Wizard Run 0 Options --------- ASCII 0 Keyboard 1 Movement Numpad Keybinds 0 Fullscreen 2 Font 18/TerminusBold Map View 76x50 Tactical HUD 1 Map Filters NONE Filters NONE Steam 1 RUN: 5d0d6987-0fbf-4e1f-b6f2-260574e74bb1